bitfinex-derivatives/quotes_BTCF0:USTF0_20241023
["timestamp","ask_amount","ask_price","bid_price","bid_amount"]
[1729709227188,0.075817,66024.0,66020.0,0.075822]
[1729709227584,0.17,66029.0,66018.0,0.17]
[1729709227781,0.075817,66024.0,66019.0,0.075823]
[1729709227980,0.075817,66024.0,66022.0,0.17]
[1729709228593,0.075815,66026.0,66023.0,0.075818]
[1729709229586,0.1968,66030.0,66022.0,0.17]
[1729709229587,0.075816,66025.0,66022.0,0.17]
[1729709230084,0.075817,66024.0,66022.0,0.17]
[1729709232287,0.075824,66019.0,66014.0,0.17]
[1729709232993,0.245818,66023.0,66014.0,0.17]
[1729709233190,0.17,66026.0,66018.0,0.17]
[1729709233380,0.3668,66030.0,66021.0,0.17]
[1729709233894,0.075817,66024.0,66021.0,0.24582]
[1729709234284,0.3668,66030.0,66021.0,0.24582]
[1729709234593,0.3668,66030.0,66029.0,0.04499106]
[1729709234594,0.44261,66030.0,66029.0,0.04499106]
[1729709235093,0.44261,66030.0,66028.0,0.05998808]
[1729709235094,0.3668,66030.0,66028.0,0.05998808]
[1729709235292,0.3872,66036.0,66029.0,0.17]
[1729709235492,0.075802,66038.0,66034.0,0.17]
[1729709235688,0.075797,66042.0,66037.0,0.245802]
[1729709235882,0.075797,66041.0,66040.0,0.05998808]
[1729709236087,0.075797,66041.0,66037.0,0.245802]
[1729709236294,0.075795,66043.0,66040.0,0.075798]
[1729709236596,0.075796,66042.0,66041.0,0.06005415]
[1729709236895,0.075796,66042.0,66041.0,0.06002843]
[1729709238092,0.17,66044.0,66040.0,0.06002843]
[1729709238395,0.075797,66041.0,66040.0,0.06002843]
[1729709238895,0.245797,66041.0,66040.0,0.06002843]
[1729709239102,0.245797,66041.0,66039.0,0.06002843]
[1729709239103,0.075799,66040.0,66039.0,0.06002843]
[1729709239398,0.0758,66039.0,66038.0,0.06002843]
[1729709239993,0.075801,66038.0,66037.0,0.04500838]
[1729709240192,0.17,66038.0,66036.0,0.04500838]
[1729709240400,0.431902,66037.0,66035.0,0.04500838]
[1729709240594,0.245803,66036.0,66033.0,0.04501765]
[1729709240893,0.245803,66036.0,66017.0,0.09061549]
[1729709240894,0.075808,66032.0,66024.0,0.04503662]
[1729709241091,0.075808,66032.0,66019.0,0.06002843]
[1729709241092,0.075818,66023.0,66019.0,0.06002843]
[1729709241287,0.075818,66023.0,66022.0,0.04503351]
[1729709241483,0.075824,66018.0,66017.0,0.04503351]
[1729709241692,0.075825,66017.0,66013.0,0.06002843]
[1729709241894,0.17,66019.0,66016.0,0.04501387]
[1729709242097,0.075825,66017.0,66016.0,0.04501387]
[1729709242397,0.17,66019.0,66012.0,0.06002843]
[1729709242398,0.17,66019.0,66012.0,0.04501387]
[1729709242591,0.24583,66013.0,66011.0,0.04501387]
[1729709242792,0.075831,66012.0,66011.0,0.04501387]
[1729709242992,0.17,66013.0,66008.0,0.06002843]
[1729709243197,0.17,66017.0,66011.0,0.04502371]
[1729709243400,0.17,66017.0,66012.0,0.04502371]
[1729709243599,0.07583,66013.0,66011.0,0.04502371]
[1729709243899,0.075831,66012.0,66011.0,0.04502371]
[1729709244095,0.075832,66011.0,66010.0,0.04502371]
[1729709244492,0.17,66013.0,66007.0,0.075836]
[1729709244493,0.075833,66010.0,66007.0,0.04500722]
[1729709244691,0.075833,66010.0,66002.0,0.06002843]
[1729709244692,0.34,66008.0,66002.0,0.04500722]
[1729709244900,0.075843,66001.0,66000.0,0.04500722]
[1729709245203,0.075843,66001.0,65988.0,0.25901291]
[1729709245204,0.075846,65999.0,65998.0,0.04500722]
[1729709245591,0.075847,65998.0,65996.0,0.17]
[1729709245799,0.075849,65997.0,65995.0,0.04500722]
[1729709246097,0.16261079,66006.0,65994.0,0.04500722]
[1729709246098,0.075849,65996.0,65994.0,0.04500722]
[1729709246497,0.075849,65996.0,65993.0,0.29085922]
[1729709246695,0.075849,65996.0,65994.0,0.075851]
[1729709246894,0.075851,65995.0,65993.0,0.21500722]
[1729709247094,0.17,65997.0,65991.0,0.00227299]
[1729709247496,0.075854,65992.0,65991.0,0.00227299]
[1729709247806,0.075854,65992.0,65989.0,0.075856]
[1729709247991,0.075854,65992.0,65986.0,0.21500722]
[1729709247992,0.17,65994.0,65986.0,0.17]
[1729709248188,0.245857,65990.0,65986.0,0.07586]
[1729709248393,0.075858,65989.0,65986.0,0.07586]
[1729709249399,0.18,65987.0,65979.0,0.19973014]
[1729709249604,0.075865,65982.0,65980.0,0.075867]
[1729709249905,0.075851,65995.0,65981.0,0.075866]
[1729709249906,0.255861,65986.0,65981.0,0.075866]
[1729709250101,0.075846,65999.0,65979.0,0.00253014]
[1729709250102,0.18,65985.0,65979.0,0.00253014]
[1729709250303,0.075866,65982.0,65979.0,0.00253014]
[1729709250508,0.18,65985.0,65982.0,0.075865]
[1729709250810,0.18,65985.0,65979.0,0.07839814]
[1729709251110,0.075865,65983.0,65981.0,0.075866]
[1729709251400,0.075865,65983.0,65981.0,0.245866]
[1729709251604,0.075865,65983.0,65982.0,0.075865]
[1729709251797,0.18,65985.0,65979.0,0.00253014]
[1729709251999,0.075868,65980.0,65979.0,0.00253014]
[1729709256213,0.18,65982.0,65979.0,0.00253014]
[1729709256512,0.245857,65990.0,65985.0,0.075861]
[1729709256813,0.17,66008.0,65989.0,0.13558221]
[1729709256814,0.17,65996.0,65989.0,0.13558221]
[1729709257004,0.075854,65993.0,65991.0,0.05972521]
[1729709257204,0.245854,65993.0,65991.0,0.05972521]
[1729709257512,0.245854,65993.0,65990.0,0.13558121]
[1729709257707,0.00208002,65992.0,65990.0,0.13558121]
[1729709257908,0.00208002,65992.0,65990.0,0.05972521]
[1729709258211,0.075855,65991.0,65990.0,0.05972521]
[1729709258412,0.075855,65991.0,65989.0,0.05972521]
[1729709258605,0.00208002,65992.0,65989.0,0.05972521]
[1729709258606,0.17,65990.0,65989.0,0.05972521]
[1729709258806,0.17,65990.0,65984.0,0.1031938]
[1729709258807,0.075857,65989.0,65988.0,0.05972521]
[1729709259113,0.00208002,65990.0,65985.0,0.17]
[1729709259318,0.00208002,65990.0,65989.0,0.05970498]
[1729709259619,0.00208002,65990.0,65989.0,0.13556198]
[1729709259821,0.00208002,65990.0,65989.0,0.075857]
[1729709260208,0.00208002,65990.0,65989.0,0.13557077]
[1729709260714,0.00208002,65990.0,65989.0,0.075857]
[1729709261114,0.00208002,65990.0,65989.0,0.13556957]
[1729709262121,0.18208002,65990.0,65988.0,0.05971257]
[1729709262319,0.075858,65988.0,65987.0,0.05971257]
[1729709262616,0.075858,65988.0,65985.0,0.075861]
[1729709262617,0.245858,65988.0,65985.0,0.075861]
[1729709262820,0.00208002,65987.0,65986.0,0.07586]
[1729709263020,0.00208002,65987.0,65984.0,0.07551291]
[1729709263418,0.00208002,65987.0,65983.0,0.17]
[1729709263419,0.07794002,65987.0,65983.0,0.24551291]
[1729709263722,0.07794002,65987.0,65985.0,0.075861]
[1729709264016,0.00208002,65986.0,65985.0,0.15137391]
[1729709264217,0.00208002,65986.0,65985.0,0.075861]
[1729709265417,0.00208002,65986.0,65984.0,0.04480498]
[1729709265619,0.00208002,65986.0,65980.0,0.05973997]
[1729709265620,0.00208002,65986.0,65980.0,0.21480498]
[1729709265823,0.075868,65980.0,65979.0,0.00253014]
[1729709266423,0.07794402,65983.0,65979.0,0.07839914]
[1729709266629,0.00208002,65983.0,65979.0,0.00253014]
[1729709266925,0.075863,65984.0,65982.0,0.07378498]
[1729709267525,0.3969,66000.0,65982.0,0.04480498]
[1729709267526,0.17,65983.0,65982.0,0.04480498]
[1729709267724,0.18,65983.0,65982.0,0.12076968]
[1729709268033,0.255864,65983.0,65982.0,0.0449038]
[1729709268221,0.18,65983.0,65981.0,0.0449038]
[1729709268422,0.17,65992.0,65981.0,0.17]
[1729709268621,0.17,65992.0,65987.0,0.0599183]
[1729709268926,0.17,65992.0,65990.0,0.1357733]
[1729709269118,0.17,65992.0,65991.0,0.0599183]
[1729709269318,0.17,65992.0,65991.0,0.05989439]
[1729709269518,0.17,65992.0,65991.0,0.075855]
[1729709269728,0.17,65992.0,65989.0,0.07551291]
[1729709269923,0.17,65992.0,65988.0,0.26831291]
[1729709270128,0.075857,65989.0,65988.0,0.05997261]
[1729709270521,0.075861,65986.0,65985.0,0.07551291]
[1729709270826,0.245861,65986.0,65985.0,0.07551291]
[1729709271125,0.245861,65986.0,65985.0,0.1911879]
[1729709271515,0.245861,65986.0,65983.0,0.075864]
[1729709271718,0.18,65984.0,65983.0,0.075864]
[1729709272633,0.17,65985.0,65984.0,0.075862]
[1729709272831,0.245863,65985.0,65980.0,0.075867]
[1729709273026,0.075863,65984.0,65979.0,0.02986873]
[1729709273429,0.17,65985.0,65979.0,0.02986873]
[1729709273625,0.245862,65985.0,65983.0,0.075864]
[1729709273826,0.075859,65988.0,65982.0,0.17]
[1729709274020,0.075859,65988.0,65986.0,0.07586]
[1729709274229,0.07586,65987.0,65986.0,0.07586]
[1729709276535,0.075859,65988.0,65987.0,0.075859]
[1729709276738,0.17,65993.0,65985.0,0.17]
[1729709276927,0.07586,65987.0,65985.0,0.17]
[1729709277328,0.02710395,65997.0,65989.0,0.075857]
[1729709277329,0.17,65997.0,65989.0,0.075857]
[1729709277633,0.075856,65991.0,65989.0,0.075857]
[1729709277831,0.13588,66019.0,65988.0,0.17]
[1729709278030,0.13588,66019.0,65982.0,0.04730273]
[1729709278031,0.17,66004.0,65995.0,0.17]
[1729709278230,0.075849,65997.0,65995.0,0.17]
[1729709278437,0.17,66004.0,65995.0,0.17]
[1729709278634,0.075846,65999.0,65996.0,0.075849]
[1729709278834,0.17,66004.0,65995.0,0.17]
[1729709279032,0.07585,65996.0,65992.0,0.075853]
[1729709279238,0.17,65993.0,65991.0,0.1927]
[1729709279430,0.17,65993.0,65992.0,0.25642341]
[1729709279739,0.245853,65993.0,65992.0,0.11565347]
[1729709279933,0.255853,65993.0,65992.0,0.11565347]
[1729709280234,0.91813554,65993.0,65992.0,0.19085872]
[1729709280427,0.4546,65992.0,65984.0,0.09021288]
[1729709280624,0.4546,65992.0,65982.0,0.00227318]
[1729709280625,0.075861,65986.0,65985.0,0.11567804]
[1729709280826,0.255861,65986.0,65985.0,0.11567804]
[1729709281229,0.21788364,65986.0,65985.0,0.11567804]
[1729709282440,0.29788364,65986.0,65985.0,0.11567804]
[1729709282742,0.075866,65981.0,65980.0,0.09021288]
[1729709282942,0.075866,65981.0,65980.0,0.2058972]
[1729709283236,0.4057,65992.0,65984.0,0.075862]
[1729709283431,0.4057,65992.0,65985.0,0.19154412]
[1729709283630,0.2019,65992.0,65986.0,0.205896]
[1729709283842,0.26,65994.0,65989.0,0.09021288]
[1729709284032,0.075855,65991.0,65990.0,0.11568312]
[1729709284347,0.5402,66001.0,65990.0,0.11568312]
[1729709284348,0.075848,65998.0,65990.0,0.37568312]
[1729709284537,0.26,66004.0,65993.0,0.09021288]
[1729709284734,0.1908,66009.0,66000.0,0.075844]
[1729709284735,0.075843,66002.0,66000.0,0.075844]
[1729709284928,0.075843,66002.0,66001.0,0.11565361]
[1729709286533,0.07585,65996.0,65992.0,0.075853]
[1729709286738,0.075843,66002.0,65992.0,0.075853]
[1729709287441,0.075843,66002.0,65993.0,0.075852]
[1729709287946,0.26,66004.0,65995.0,0.07585]
[1729709287947,0.075842,66003.0,65995.0,0.07585]
[1729709288137,0.075847,65999.0,65995.0,0.07585]
[1729709288337,0.075847,65999.0,65995.0,0.075849]
[1729709289544,0.26,66004.0,65991.0,0.64654]
[1729709289739,0.075844,66001.0,65991.0,0.6455]
[1729709289950,0.075845,66000.0,65995.0,0.07585]
[1729709290138,0.26,66004.0,65995.0,0.07585]
[1729709290446,0.075845,66000.0,65995.0,0.07585]
[1729709290638,0.075846,65999.0,65995.0,0.07585]
[1729709292143,0.26,66004.0,65997.0,0.075848]
[1729709292448,0.26,66004.0,65998.0,0.075846]
[1729709292648,0.02787613,66007.0,65998.0,0.075846]
[1729709292841,0.64556,66009.0,65998.0,0.075846]
[1729709293145,0.075846,65999.0,65994.0,0.075851]
[1729709293652,0.26,66005.0,65991.0,0.3865]
[1729709293844,0.075852,65994.0,65992.0,0.075854]
[1729709294042,0.075849,65997.0,65992.0,0.075854]
[1729709294343,0.26,66000.0,65992.0,0.075854]
[1729709294551,0.075852,65994.0,65992.0,0.075854]
[1729709295136,0.075853,65993.0,65990.0,0.06016012]
[1729709295344,0.075853,65993.0,65992.0,0.045093]
[1729709296242,0.26,66000.0,65992.0,0.04509688]
[1729709296442,0.075852,65994.0,65992.0,0.04509688]
[1729709296650,0.075852,65994.0,65993.0,0.075853]
[1729709296844,0.075841,66003.0,65991.0,0.04509688]
[1729709297044,0.075855,65991.0,65990.0,0.04509688]
[1729709297440,0.075855,65991.0,65989.0,0.23499688]
[1729709297641,0.075855,65991.0,65990.0,0.12095288]
[1729709298544,0.075855,65991.0,65990.0,0.075856]
[1729709298948,0.075855,65991.0,65990.0,0.12100237]
[1729709299158,0.02762946,66004.0,65990.0,0.7146]
[1729709299341,0.2046,66010.0,65999.0,0.26]
[1729709299342,0.075844,66001.0,65999.0,0.26]
[1729709299542,0.075844,66001.0,66000.0,0.075845]
[1729709299954,0.02796304,66009.0,65999.0,0.26]
[1729709300252,0.075838,66006.0,66004.0,0.07584]
[1729709300447,0.2005,66015.0,66004.0,0.26]
[1729709300755,0.0278564,66013.0,66004.0,0.26]
[1729709300951,0.075818,66024.0,66010.0,0.075833]
[1729709301151,0.02713183,66025.0,66010.0,0.075833]
[1729709301354,0.4053,66026.0,66019.0,0.075822]
[1729709301355,0.075819,66023.0,66019.0,0.075822]
[1729709301553,0.12238677,66022.0,66021.0,0.26]
[1729709301749,0.12238677,66022.0,66019.0,0.075822]
[1729709302061,0.12238877,66021.0,66016.0,0.26]
[1729709302248,0.04656777,66020.0,66019.0,0.075823]
[1729709302755,0.04656777,66020.0,66016.0,0.26]
[1729709302962,0.04656777,66019.0,66016.0,0.335826]
[1729709303143,0.04656777,66018.0,66017.0,0.075825]
[1729709304253,0.04656777,66018.0,66017.0,0.245825]
[1729709304849,0.04656777,66018.0,66017.0,0.449325]
[1729709305049,0.17,66032.0,66028.0,0.075813]
[1729709305050,0.05441014,66031.0,66028.0,0.075813]
[1729709305247,0.075808,66032.0,66028.0,0.075813]
[1729709306853,0.3698,66035.0,66029.0,0.075811]
[1729709306854,0.075807,66033.0,66029.0,0.075811]
[1729709307461,0.075809,66032.0,66027.0,0.17]
[1729709307954,0.075809,66032.0,66028.0,0.075813]
[1729709308360,0.245809,66031.0,66025.0,0.075817]
[1729709308662,0.17,66028.0,66017.0,0.3735]
[1729709308959,0.17,66021.0,66017.0,0.2035]
[1729709309150,0.1998,66035.0,66014.0,0.075835]
[1729709309151,0.17,66018.0,66014.0,0.075835]
[1729709309348,0.075829,66020.0,66013.0,0.17]
[1729709309551,0.075833,66017.0,66011.0,0.075839]
[1729709309751,0.075835,66015.0,66011.0,0.075839]
[1729709310460,0.075845,66006.0,66005.0,0.26851853]
[1729709310653,0.17,66008.0,66002.0,0.17]
[1729709310854,0.17,66021.0,66006.0,0.17]
[1729709311161,0.075837,66010.0,66009.0,0.17]
[1729709311358,0.17,66014.0,66006.0,0.17]
[1729709311559,0.075837,66008.0,66005.0,0.17]
[1729709311751,0.17,66013.0,66005.0,0.17]
[1729709311954,0.075838,66007.0,66005.0,0.17]
[1729709312149,0.075839,66006.0,66005.0,0.17]
[1729709312458,0.17,66009.0,66001.0,0.17]
[1729709312951,0.17,66002.0,65994.0,0.17]
[1729709313153,0.07585,65998.0,65995.0,0.075853]
[1729709313451,0.07585,65998.0,65997.0,0.17]
[1729709313660,0.07585,65998.0,65997.0,0.245851]
[1729709313854,0.37293705,66012.0,65997.0,0.245851]
[1729709313855,0.17,66010.0,65997.0,0.17]
[1729709314057,0.02757705,66012.0,66004.0,0.17]
[1729709314258,0.17,66008.0,66001.0,0.17]
[1729709314566,0.075852,66000.0,65999.0,0.075853]
[1729709314762,0.075849,66004.0,66003.0,0.075848]
[1729709314964,0.075849,66004.0,66003.0,0.17]
[1729709315263,0.17,66006.0,65996.0,0.17]
[1729709315466,0.075854,65998.0,65997.0,0.075854]
[1729709315862,0.075858,65995.0,65994.0,0.075859]
[1729709316067,0.17,66002.0,66000.0,0.424142]
[1729709317153,0.1943,66001.0,66000.0,0.424142]
[1729709317360,0.3605,66009.0,66000.0,0.424142]
[1729709317566,0.3605,66009.0,66003.0,0.17]
[1729709317759,0.075848,66004.0,66001.0,0.075851]
[1729709318267,0.075848,66004.0,65950.0,0.00253312]
[1729709318268,0.54,66002.0,65950.0,0.00253312]
[1729709318569,0.54,66002.0,65935.0,0.075926]
[1729709318570,0.075889,65968.0,65947.0,0.075913]
[1729709318860,0.075909,65950.0,65935.0,0.075926]
[1729709319055,0.255909,65950.0,65935.0,0.02788817]
[1729709319258,0.890789,65950.0,65926.0,0.1959]
[1729709319454,0.890789,65950.0,65925.0,0.19655157]
[1729709319455,1.59488,65950.0,65925.0,0.19655157]
[1729709319658,0.18,65927.0,65925.0,0.19655157]
[1729709319863,0.14672,65932.0,65925.0,0.19655157]
[1729709320063,0.18,65926.0,65925.0,0.19655157]
[1729709320258,0.26,65926.0,65925.0,0.19655157]
[1729709320663,0.335937,65926.0,65925.0,0.19655157]
[1729709321162,0.26,65926.0,65901.0,0.428605]
[1729709321364,0.26,65915.0,65906.0,0.07596]
[1729709321570,0.26,65915.0,65907.0,0.075959]
[1729709321761,0.26,65915.0,65901.0,0.688605]
[1729709321960,0.26,65915.0,65907.0,0.075959]
[1729709323767,0.075945,65919.0,65914.0,0.26]
[1729709324665,0.26,65926.0,65911.0,0.26]
[1729709324974,0.075947,65917.0,65911.0,0.26]
[1729709325762,0.00227641,65929.0,65901.0,0.001]
[1729709325763,0.26,65912.0,65901.0,0.001]
[1729709325969,0.26,65912.0,65895.0,0.4475]
[1729709325970,0.075964,65903.0,65895.0,0.4485]
[1729709326165,0.03794249,65900.0,65895.0,0.001]
[1729709326365,0.03794249,65900.0,65881.0,0.1468]
[1729709326366,0.26,65903.0,65882.0,0.30478659]
[1729709326568,0.075978,65891.0,65882.0,0.335988]
[1729709326771,0.26,65904.0,65891.0,0.075977]
[1729709327375,0.075964,65903.0,65891.0,0.075977]
[1729709327577,0.075969,65899.0,65890.0,0.26]
[1729709328682,0.075964,65903.0,65898.0,0.26]
[1729709328886,0.075964,65903.0,65882.0,0.26]
[1729709328887,0.075963,65904.0,65902.0,0.26]
[1729709329190,0.1468,65908.0,65902.0,0.26]
[1729709329580,0.222758,65908.0,65902.0,0.26]
[1729709329777,0.075959,65907.0,65902.0,0.26]
[1729709330086,0.07596,65906.0,65902.0,0.26]
[1729709330592,0.26,65924.0,65902.0,0.26]
[1729709330886,0.26,65924.0,65888.0,0.00227649]
[1729709330887,0.075939,65924.0,65923.0,0.26]
[1729709331086,0.075939,65924.0,65919.0,0.26]
[1729709331286,0.26,65925.0,65910.0,0.26]
[1729709331485,0.075951,65915.0,65904.0,0.26]
[1729709331689,0.075951,65915.0,65908.0,0.26]
[1729709333390,0.075951,65915.0,65910.0,0.075954]
[1729709334895,0.075951,65915.0,65888.0,0.12264694]
[1729709334896,0.075959,65907.0,65905.0,0.075961]
[1729709335096,0.075958,65908.0,65904.0,0.26]
[1729709335283,0.075958,65908.0,65907.0,0.075959]
[1729709335594,0.075955,65911.0,65908.0,0.075957]
[1729709335892,0.075955,65911.0,65909.0,0.075956]
[1729709336285,0.26,65917.0,65904.0,0.26]
[1729709336598,0.075959,65907.0,65905.0,0.07596]
[1729709336799,0.26,65917.0,65905.0,0.07596]
[1729709337184,0.26,65917.0,65891.0,0.04438945]
[1729709337185,0.26,65912.0,65901.0,0.075965]
[1729709337384,0.075962,65904.0,65901.0,0.075965]
[1729709338197,0.26,65912.0,65899.0,0.26]
[1729709338403,0.26,65912.0,65900.0,0.12063976]
[1729709338802,0.075965,65902.0,65901.0,0.04467376]
[1729709339192,0.075965,65902.0,65894.0,0.26]
[1729709339597,0.07596,65906.0,65902.0,0.075964]
[1729709339798,0.07596,65906.0,65903.0,0.075963]
[1729709340195,0.07596,65906.0,65899.0,0.26]
[1729709340394,0.07596,65906.0,65904.0,0.075961]
[1729709340707,0.07596,65906.0,65888.0,0.03013337]
[1729709340708,0.075958,65908.0,65901.0,0.26]
[1729709340897,0.075958,65908.0,65905.0,0.07596]
[1729709342603,0.075947,65917.0,65906.0,0.26]
[1729709342909,0.14692,65919.0,65911.0,0.075954]
[1729709343201,0.075944,65921.0,65915.0,0.075949]
[1729709343404,0.14692,65923.0,65910.0,0.16]
[1729709343598,0.075946,65918.0,65912.0,0.075952]
[1729709343798,0.075948,65917.0,65912.0,0.075952]
[1729709343995,0.075952,65913.0,65907.0,0.075958]
[1729709344203,0.075952,65913.0,65903.0,0.26]
[1729709344406,0.26,65904.0,65890.0,0.482898]
[1729709344713,0.26,65904.0,65890.0,0.483938]
[1729709344912,0.26,65903.0,65893.0,0.02757978]
[1729709345209,0.26,65899.0,65889.0,0.075979]
[1729709345407,0.075975,65894.0,65889.0,0.075979]
[1729709345710,0.26,65899.0,65890.0,0.075978]
[1729709345913,0.075975,65893.0,65890.0,0.075978]
[1729709346208,0.26,65899.0,65890.0,0.075978]
[1729709346505,0.075971,65896.0,65895.0,0.05936205]
[1729709346707,0.075971,65896.0,65893.0,0.075974]
[1729709346708,0.26,65904.0,65893.0,0.075974]
[1729709347005,0.26,65904.0,65896.0,0.05942019]
[1729709347203,0.26,65904.0,65902.0,0.05942019]
[1729709347408,0.075963,65903.0,65902.0,0.05942019]
[1729709347807,0.075966,65901.0,65897.0,0.07597]
[1729709348310,0.26,65904.0,65899.0,0.0887789]
[1729709348510,0.075965,65901.0,65900.0,0.20401025]
[1729709348901,0.00227681,65906.0,65900.0,0.51256749]
[1729709349103,0.00227681,65906.0,65905.0,0.075961]
[1729709349304,0.00227681,65906.0,65905.0,0.32852849]
[1729709350616,0.00227681,65906.0,65905.0,0.32837089]
[1729709351808,0.26,65924.0,65905.0,0.32837089]
[1729709352003,0.07594,65923.0,65922.0,0.07489494]
[1729709352212,0.07594,65923.0,65922.0,0.11515251]
[1729709352406,0.07594,65923.0,65893.0,0.2004]
[1729709352614,0.07594,65923.0,65907.0,0.075958]
[1729709352813,0.07594,65923.0,65896.0,0.14792]
[1729709353114,0.075955,65910.0,65905.0,0.075961]
[1729709353307,0.075955,65910.0,65896.0,0.14792]
[1729709353512,0.335955,65910.0,65905.0,0.1048719]
[1729709353813,0.075953,65912.0,65910.0,0.075955]
[1729709354005,0.075953,65912.0,65911.0,0.25322298]
[1729709354327,0.075953,65912.0,65911.0,0.05992052]
[1729709354715,0.28764579,65926.0,65911.0,0.05992052]
[1729709355013,0.075946,65918.0,65916.0,0.12087733]
[1729709355225,0.075946,65918.0,65917.0,0.04492933]
[1729709355715,0.075946,65918.0,65917.0,0.04491932]
[1729709355915,0.075946,65918.0,65914.0,0.05990578]
[1729709356917,0.075947,65917.0,65914.0,0.05990578]
[1729709357507,0.335947,65917.0,65914.0,0.05990578]
[1729709357808,0.075948,65916.0,65914.0,0.05990578]
[1729709358006,0.075948,65916.0,65913.0,0.13585678]
[1729709358202,0.26,65917.0,65913.0,0.05990578]
[1729709358421,0.075953,65912.0,65911.0,0.05990578]
[1729709358617,0.335953,65912.0,65911.0,0.05990578]
[1729709359022,0.26,65912.0,65909.0,0.05990578]
[1729709359213,0.02692615,65917.0,65907.0,0.05990459]
[1729709359214,0.26,65910.0,65907.0,0.05990459]
[1729709359511,0.26,65910.0,65906.0,0.05990459]
[1729709359713,0.075959,65907.0,65906.0,0.05990459]
[1729709359917,0.26,65910.0,65902.0,0.075964]
[1729709360215,0.07595,65914.0,65905.0,0.05990535]
[1729709360517,0.075955,65910.0,65905.0,0.05990535]
[1729709360706,0.07595,65914.0,65905.0,0.05992481]
[1729709360906,0.07595,65914.0,65904.0,0.05992481]
[1729709361113,0.075957,65908.0,65906.0,0.04495681]
[1729709361418,0.14792,65915.0,65903.0,0.1048719]
[1729709361419,0.26,65907.0,65903.0,0.1048719]
[1729709361618,0.26,65907.0,65904.0,0.25113441]
[1729709361827,0.07596,65906.0,65905.0,0.25113765]
[1729709362416,0.53116,65906.0,65905.0,0.25113765]
[1729709362609,0.075969,65898.0,65897.0,0.1048719]
[1729709362814,0.335969,65898.0,65897.0,0.25077079]
[1729709363323,0.791209,65898.0,65897.0,0.25077079]
[1729709363527,0.335969,65898.0,65897.0,0.25077079]
[1729709364117,0.791209,65898.0,65897.0,0.25077079]
[1729709364322,0.791209,65898.0,65897.0,0.11440473]
[1729709365423,0.791209,65898.0,65897.0,0.20434601]
[1729709366222,0.791209,65898.0,65897.0,0.11440473]
[1729709367217,0.335969,65898.0,65897.0,0.11440473]
[1729709367916,0.26,65898.0,65896.0,0.07488803]
[1729709368116,0.26,65898.0,65890.0,0.08994128]
[1729709368117,0.075974,65894.0,65890.0,0.08994128]
[1729709368325,0.26,65892.0,65889.0,0.075979]
[1729709368823,0.26,65892.0,65890.0,0.075977]
[1729709369020,0.075969,65898.0,65891.0,0.075977]
[1729709369222,0.075938,65925.0,65907.0,0.075959]
[1729709369223,0.1036682,65913.0,65907.0,0.075959]
[1729709369524,0.14796,65925.0,65907.0,0.335959]
[1729709369826,0.26,65917.0,65902.0,0.04488544]
[1729709370022,0.075955,65910.0,65905.0,0.07596]
[1729709370217,0.26,65912.0,65901.0,0.075965]
[1729709370524,0.18,65902.0,65896.0,0.04488544]
[1729709370722,0.075967,65900.0,65896.0,0.12085644]
[1729709370920,0.18,65902.0,65896.0,0.075971]
[1729709371121,0.075969,65898.0,65896.0,0.075971]
[1729709371424,0.075966,65901.0,65898.0,0.075968]
[1729709371625,0.02756842,65909.0,65897.0,0.18]
[1729709371819,0.07596,65906.0,65905.0,0.18]
[1729709372020,0.02756569,65912.0,65906.0,0.075959]
[1729709372321,0.07823547,65908.0,65906.0,0.075959]
[1729709372524,0.00227747,65908.0,65906.0,0.075959]
[1729709372918,0.07597,65898.0,65895.0,0.04488544]
[1729709373115,0.18,65906.0,65891.0,0.18]
[1729709373320,0.18,65898.0,65895.0,0.075972]
[1729709373528,0.18,65902.0,65887.0,0.04488544]
[1729709373724,0.18,65899.0,65898.0,0.075969]
[1729709374026,0.18947747,65908.0,65894.0,0.18]
[1729709374027,0.18,65907.0,65894.0,0.18]
[1729709374325,0.18,65907.0,65904.0,0.075961]
[1729709374526,0.18,65903.0,65895.0,0.1902]
[1729709374829,0.22619547,65908.0,65901.0,0.075965]
[1729709375325,0.18,65902.0,65895.0,0.1902]
[1729709375529,0.075965,65902.0,65895.0,0.075972]
[1729709375718,0.18,65896.0,65891.0,0.075977]
[1729709375922,0.14796,65907.0,65891.0,0.075977]
[1729709375923,0.18,65892.0,65891.0,0.075977]
[1729709376126,0.18,65892.0,65886.0,0.23988544]
[1729709376325,0.18,65894.0,65881.0,0.2]
[1729709376326,0.075978,65890.0,65889.0,0.08994128]
[1729709376627,0.07598,65888.0,65887.0,0.08994128]
[1729709376820,0.07598,65888.0,65885.0,0.075983]
[1729709376821,0.18,65888.0,65886.0,0.08994128]
[1729709377020,0.075982,65887.0,65886.0,0.08994128]
[1729709377220,0.075982,65887.0,65883.0,0.075986]
[1729709377528,0.18,65884.0,65883.0,0.075986]
[1729709377729,0.18,65884.0,65883.0,0.18832274]
[1729709378127,0.255985,65884.0,65883.0,0.18832274]
[1729709378325,0.335985,65884.0,65883.0,0.18832274]
[1729709379028,0.335985,65884.0,65883.0,0.11233674]
[1729709379230,0.26,65884.0,65881.0,0.07488942]
[1729709379422,0.26,65884.0,65880.0,0.15087842]
[1729709379622,0.075988,65881.0,65880.0,0.075989]
[1729709379831,0.075988,65881.0,65880.0,0.11249707]
[1729709380030,0.075988,65881.0,65880.0,0.18737108]
[1729709380226,0.075988,65881.0,65880.0,0.07487401]
[1729709380431,0.26,65884.0,65879.0,0.07487401]